[Event "Polish Youth Ekstraliga 2022"]
[Site "Lublin"]
[Date "2022.07.03"]
[Round "9.28"]
[White "Terkiewicz, Bruno"]
[Black "Kaszuba, Michal"]
[Result "1/2-1/2"]
[ECO "B27"]
[WhiteElo "1320"]
[BlackElo "1307"]
[Annotator "NA RC"]
[PlyCount "92"]
[EventDate "2022.06.24"]
[EventType "team-tourn"]
[EventCountry "POL"]
[SourceTitle "playchess.com"]
[Source "ChessBase"]
[SourceQuality "1"]
[TimeControl "40/5400+30:1800+30"]

1. e4 {[%emt 0:00:10]} c5 {[%emt 0:00:07]} 2. Nf3 {[%emt 0:00:03]} g6 {[%emt 0:00:07]} 3. c3 {[%emt 0:00:06]} d5 {[%emt 0:00:38]} 4. exd5 {[%emt 0:00:04]} Qxd5 {[%emt 0:00:57]} 5. d4 {[%emt 0:00:36]} cxd4 {[%emt 0:04:09]} 6. Qxd4 {[%emt 0:06:47]} Qxd4 {[%emt 0:03:00]} 7. Nxd4 {[%emt 0:00:06]} Bd7 {[%emt 0:13:26]} 8. Nb5 {[%emt 0:02:50]} Bxb5 {[%emt 0:01:20]} 9. Bxb5+ {[%emt 0:00:02]} Nc6 {[%emt 0:00:18]} 10. Be3 {[%emt 0:05:06]} Bg7 {[%emt 0:03:00]} 11. Nd2 {[%emt 0:04:04]} Nf6 {[%emt 0:04:37]} 12. O-O-O {[%emt 0:07:09]} O-O {[%emt 0:14:06]} 13. Bc5 {[%emt 0:22:57]} Rac8 {[%emt 0:30:09]} 14. Bxc6 {[%emt 0:04:34]} Rxc6 {[%emt 0:00:14]} 15. Bxe7 {[%emt 0:00:10]} Re8 {[%emt 0:00:33]} 16. Bxf6 {[%emt 0:00:40]} Rxf6 {[%emt 0:03:05]} 17. Rhf1 {[%emt 0:29:59]} Re2 {[%emt 0:06:14]} 18. Nf3 {[%emt 0:01:02]} Bh6+ {[%emt 0:01:06]} 19. Kb1 {[%emt 0:00:15]} Rb6 {[%emt 0:02:11]} 20. b3 {[%emt 0:02:02]} Rf6 {[%emt 0:04:54]} 21. Rde1 {[%emt 0:03:25]} Rfe6 {[%emt 0:05:42]} 22. Rxe2 {[%emt 0:00:35]} Rxe2 {[%emt 0:00:04]} 23. Nd4 {[%emt 0:01:59]} Rd2 {[%emt 0:01:27]} 24. Nf3 {[%emt 0:01:43]} Re2 {[%emt 0:00:16]} 25. Nd4 {[%emt 0:02:28]} Rd2 {[%emt 0:00:11]} 26. Nc2 {[%emt 0:02:06]} Rd3 {[%emt 0:00:58]} 27. Kb2 {[%emt 0:00:26]} Bg7 {[%emt 0:00:15]} 28. Nd4 {[%emt 0:00:30]} Bxd4 {[%emt 0:00:18]} 29. cxd4 {[%emt 0:00:02]} Rxd4 {[%emt 0:00:08]} 30. Kc3 {[%emt 0:00:08]} Rd6 {[%emt 0:00:21]} 31. Re1 {[%emt 0:00:24]} Rc6+ {[%emt 0:00:15]} 32. Kb2 {[%emt 0:00:10]} Rc7 {[%emt 0:01:10]} 33. Re3 {[%emt 0:01:39]} Kg7 {[%emt 0:00:20]} 34. a3 {[%emt 0:00:35]} h5 {[%emt 0:00:27]} 35. Rc3 {[%emt 0:00:48]} Re7 {[%emt 0:00:14]} 36. Rc2 {[%emt 0:00:08]} Kf6 {[%emt 0:00:21]} 37. Kc3 {[%emt 0:01:35]} Rc7+ {[%emt 0:00:22]} 38. Kd3 {[%emt 0:00:08]} Rd7+ {[%emt 0:00:11]} 39. Ke2 {[%emt 0:00:07]} Ke5 {[%emt 0:00:20]} 40. Rc3 {[%emt 0:00:00]} Kf5 {[%emt 0:00:00]} 41. Rc5+ {[%emt 0:03:06]} Ke6 {[%emt 0:01:58]} 42. Rc4 {[%emt 0:00:27]} Ke5 {[%emt 0:02:46]} 43. Rc5+ {[%emt 0:02:10]} Ke6 {[%emt 0:00:40]} 44. Rc1 {[%emt 0:01:43]} Ke5 {[%emt 0:06:58]} 45. Ke3 {[%emt 0:01:49]} f5 {[%emt 0:10:25]} 46. Rc5+ {[%emt 0:05:23]} Kf6 {[%emt 0:01:02]} 1/2-1/2

[Event "Polish Youth Ekstraliga 2022"]
[Site "Lublin"]
[Date "2022.07.03"]
[Round "9.29"]
[White "Goraj, Barbara"]
[Black "Bukala, Weronika"]
[Result "1-0"]
[ECO "A04"]
[WhiteElo "2035"]
[BlackElo "1827"]
[Annotator "NA RC"]
[PlyCount "113"]
[EventDate "2022.06.24"]
[EventType "team-tourn"]
[EventCountry "POL"]
[SourceTitle "playchess.com"]
[Source "ChessBase"]
[SourceQuality "1"]
[TimeControl "40/5400+30:1800+30"]

1. Nf3 {[%emt 0:00:04]} c5 {[%emt 0:00:18]} 2. c4 {[%emt 0:00:05]} Nc6 {[%emt 0:00:31]} 3. b3 {[%emt 0:00:09]} e5 {[%emt 0:02:17]} 4. Bb2 {[%emt 0:00:08]} d6 {[%emt 0:00:40]} 5. d3 {[%emt 0:00:59]} g6 {[%emt 0:00:59]} 6. g3 {[%emt 0:00:17]} Bg7 {[%emt 0:00:07]} 7. Bg2 {[%emt 0:01:37]} Nge7 {[%emt 0:00:41]} 8. Nc3 {[%emt 0:01:10]} O-O {[%emt 0:04:02]} 9. O-O {[%emt 0:00:08]} h6 {[%emt 0:00:45]} 10. Nd5 {[%emt 0:03:59]} Be6 {[%emt 0:01:39]} 11. Ne1 {[%emt 0:12:11]} Qd7 {[%emt 0:02:59]} 12. Nc2 {[%emt 0:01:59]} Bh3 {[%emt 0:01:41]} 13. e3 {[%emt 0:15:53]} Bxg2 {[%emt 0:03:44]} 14. Kxg2 {[%emt 0:00:07]} b5 {[%emt 0:04:19]} 15. Rb1 {[%emt 0:10:28]} b4 {[%emt 0:03:48]} 16. d4 {[%emt 0:03:11]} exd4 {[%emt 0:04:46]} 17. exd4 {[%emt 0:04:09]} Nxd5 {[%emt 0:02:08]} 18. cxd5 {[%emt 0:00:09]} Ne7 $11 {[%emt 0:01:17]} 19. Ne3 {[%emt 0:05:13]} Nf5 {[%emt 0:08:29]} 20. dxc5 {[%emt 0:06:10]} dxc5 {[%emt 0:00:38]} 21. Bxg7 {[%emt 0:01:02]} Kxg7 {[%emt 0:00:12]} 22. Rc1 {[%emt 0:00:54]} Nxe3+ {[%emt 0:04:55]} 23. fxe3 {[%emt 0:02:18]} Qd6 {[%emt 0:01:48]} 24. e4 {[%emt 0:01:26]} Rac8 {[%emt 0:08:48]} 25. Qf3 {[%emt 0:07:18]} f5 {[%emt 0:08:43]} 26. Qf4 {[%emt 0:00:20]} Rfd8 {[%emt 0:07:20]} 27. Rcd1 {[%emt 0:12:05]} Qxf4 {[%emt 0:00:11]} 28. Rxf4 {[%emt 0:00:07]} fxe4 {[%emt 0:02:07]} 29. Rxe4 {[%emt 0:00:15]} Rc7 {[%emt 0:01:47]} 30. Kf3 {[%emt 0:01:15]} Rd6 {[%emt 0:01:48]} 31. Ke3 {[%emt 0:02:28]} Rf7 {[%emt 0:01:58]} 32. Re5 {[%emt 0:01:57]} Rf5 {[%emt 0:03:46]} 33. Ke4 {[%emt 0:04:27]} Kf6 {[%emt 0:00:21]} 34. Re8 {[%emt 0:01:02]} Kf7 {[%emt 0:01:31]} 35. Rc8 {[%emt 0:01:00]} Rf2 {[%emt 0:01:53]} 36. Rxc5 {[%emt 0:01:52]} Re2+ {[%emt 0:01:08]} 37. Kd4 {[%emt 0:00:08]} Rxa2 {[%emt 0:04:36]} 38. Rc7+ {[%emt 0:00:15]} Ke8 {[%emt 0:00:54]} 39. h4 {[%emt 0:01:07]} Rf6 {[%emt 0:04:28]} 40. Rd3 {[%emt 0:00:00]} a5 {[%emt 0:00:00]} 41. Re3+ {[%emt 0:08:27]} Kd8 {[%emt 0:04:08]} 42. Ra7 {[%emt 0:01:13]} Rd2+ {[%emt 0:03:51]} 43. Ke4 {[%emt 0:01:52]} Rf8 {[%emt 0:04:33]} 44. Ra8+ {[%emt 0:01:52]} Ke7 {[%emt 0:00:07]} 45. Rxa5 {[%emt 0:00:09]} g5 {[%emt 0:08:24]} 46. h5 {[%emt 0:03:32]} Kd7 {[%emt 0:03:25]} 47. Ra7+ {[%emt 0:00:18]} Kd6 {[%emt 0:00:29]} 48. Ra6+ {[%emt 0:00:06]} Kc5 {[%emt 0:01:40]} 49. Rc6+ {[%emt 0:00:06]} Kb5 {[%emt 0:00:07]} 50. Rxh6 {[%emt 0:00:25]} Rd8 {[%emt 0:02:00]} 51. Rd3 {[%emt 0:03:10]} Rxd3 {[%emt 0:00:43]} 52. Kxd3 {[%emt 0:00:07]} Rxd5+ {[%emt 0:00:03]} 53. Ke4 {[%emt 0:00:35]} Kc5 {[%emt 0:03:34]} 54. Rg6 {[%emt 0:01:06]} Rd4+ {[%emt 0:05:19]} 55. Ke3 {[%emt 0:00:35]} Rd5 {[%emt 0:00:53]} 56. h6 {[%emt 0:00:53]} Re5+ {[%emt 0:00:13]} 57. Kd3 {[%emt 0:00:13]} 1-0